fUSD/lending_fUSD_20250421
["ID","MTS","AMOUNT","RATE_DAILY","PERIOD"]
[358494018,1745209860450,-500.0,0.00064657,120]
[358494019,1745209860460,-500.0,0.00064657,120]
[358494020,1745209860474,-556.52182944,0.00064657,120]
[358494021,1745209860484,-500.0,0.00064657,120]
[358494022,1745209860493,-500.0,0.00064657,120]
[358494023,1745209860503,-521.99744672,0.00064657,120]
[358494024,1745209860512,-500.0,0.00064657,120]
[358494025,1745209860522,-508.35,0.00064657,120]
[358494026,1745209860531,-619.68236397,0.00064657,120]
[358494027,1745209860540,-238.39287012,0.00064657,120]
[358494028,1745209860549,-500.0,0.00064657,120]
[358494029,1745209860558,-500.0,0.00064657,120]
[358494030,1745209860567,-500.0,0.00064657,120]
[358494031,1745209860576,-527.21538115,0.00064657,120]
[358494032,1745209860585,-500.0,0.00064657,120]
[358494033,1745209860595,-500.0,0.00064657,120]
[358494034,1745209860603,-500.0,0.00064657,120]
[358494035,1745209860613,-500.0,0.00064657,120]
[358494036,1745209860622,-368.42644452,0.00064657,20]
[358494037,1745209860631,-803.87,0.00064657,120]
[358494038,1745209860640,-646.1876924,0.00064657,120]
[358494039,1745209860649,-500.0,0.00064657,120]
[358494040,1745209860658,-500.0,0.00064657,120]
[358494041,1745209860667,-741.4,0.00064657,120]
[358494042,1745209860676,-496.97087859,0.00064657,120]
[358494043,1745209860686,-500.0,0.00064657,120]
[358494044,1745209860695,-500.0,0.00064657,120]
[358494045,1745209860705,-500.0,0.00064657,120]
[358494046,1745209860714,-151.0,0.00064657,120]
[358494047,1745209860728,-500.0,0.00064657,120]
[358494048,1745209860737,-601.7052493,0.00064657,120]
[358494049,1745209860746,-500.0,0.00064657,120]
[358494050,1745209860755,-500.0,0.00064657,12]
[358494051,1745209860765,-500.0,0.00064657,120]
[358494052,1745209860774,-500.0,0.00064657,118]
[358494053,1745209860783,-450.96173492,0.00064657,120]
[358494054,1745209860792,-815.95,0.00064657,120]
[358494055,1745209860802,-661.79,0.00064657,120]
[358494056,1745209860811,-500.0,0.00064657,120]
[358494057,1745209860820,-500.0,0.00064657,120]
[358494058,1745209860829,-500.0,0.00064657,120]
[358494059,1745209860838,-706.36,0.00064657,120]
[358494060,1745209860847,-570.89289938,0.00064657,120]
[358494061,1745209860857,-430.57822498,0.00064657,120]
[358494062,1745209860867,-500.0,0.00064657,14]
[358494063,1745209860876,-500.0,0.00064657,120]
[358494064,1745209860885,-500.0,0.00064657,120]
[358494065,1745209860894,-500.0,0.00064657,30]
[358494066,1745209860904,-1690.23,0.00064657,120]
[358494067,1745209860914,-500.0,0.00064657,120]
[358494068,1745209860923,-81.61462182,0.00064657,120]
[358494069,1745209861091,-474.48384177,0.00064657,120]
[358494070,1745209861101,-107.79615744,0.00064657,120]
[358494071,1745209861116,-392.20384256,0.00064657,120]
[358494072,1745209861126,-500.0,0.00064657,120]
[358494073,1745209861136,-200.04021235,0.00064657,120]
[358494074,1745209861145,-787.95,0.00064657,120]
[358494075,1745209861155,-500.0,0.00064657,120]
[358494076,1745209861164,-500.0,0.00064657,120]
[358494077,1745209861174,-500.0,0.00064657,120]
[358494078,1745209861183,-500.0,0.00064657,120]
[358494079,1745209861192,-500.0,0.00064657,120]
[358494080,1745209861202,-637.94481424,0.00064657,120]
[358494081,1745209861211,-1111.6,0.00064657,120]
[358494082,1745209861222,-500.0,0.00064657,120]
[358494083,1745209861231,-500.0,0.00064657,120]
[358494084,1745209861240,-500.0,0.00064657,120]
[358494085,1745209861250,-500.0,0.00064657,120]
[358494086,1745209861259,-561.61,0.00064657,120]
[358494087,1745209861269,-500.0,0.00064657,120]
[358494088,1745209861279,-636.05415839,0.00064657,120]
[358494089,1745209861289,-300.79082128,0.00064657,120]
[358494090,1745209861298,-500.0,0.00064657,120]
[358494091,1745209861308,-555.73,0.00064657,120]
[358494092,1745209861318,-729.9,0.00064657,120]
[358494093,1745209861327,-1084.13,0.00064657,120]
[358494094,1745209861336,-500.0,0.00064657,120]
[358494095,1745209861346,-500.0,0.00064657,8]
[358494096,1745209861355,-947.59,0.00064657,120]
[358494097,1745209861365,-266.59368936,0.00064657,120]
[358494098,1745209861374,-557.65,0.00064657,120]
[358494099,1745209861384,-2095.28,0.00064657,120]
[358494100,1745209861393,-676.13,0.00064657,120]
[358494101,1745209861403,-500.0,0.00064657,120]
[358494102,1745209861527,-500.0,0.00064657,120]
[358494103,1745209861537,-500.0,0.00064657,120]
[358494104,1745209861548,-736.6,0.00064657,120]
[358494105,1745209861557,-646.68581155,0.00064657,120]
[358494106,1745209861567,-500.0,0.00064657,120]
[358494107,1745209861576,-774.21,0.00064657,120]
[358494108,1745209861586,-3295.78,0.00064657,2]
[358494109,1745209861596,-2158.59,0.00064657,120]
[358494110,1745209861606,-572.51204365,0.00064657,120]
[358494111,1745209861616,-500.0,0.00064657,120]
[358494112,1745209861626,-1847.89,0.00064657,120]
[358494113,1745209861635,-500.0,0.00064657,120]
[358494114,1745209861645,-500.0,0.00064657,120]
[358494115,1745209861655,-500.0,0.00064657,120]
[358494116,1745209861664,-500.0,0.00064657,120]
[358494117,1745209861674,-500.0,0.00064657,120]
[358494118,1745209861683,-507.83935475,0.00064657,120]
[358494119,1745209861693,-500.0,0.00064657,120]
[358494120,1745209861702,-500.0,0.00064657,120]
[358494121,1745209861711,-371.72985152,0.00064657,120]
[358494122,1745209861724,-564.14631837,0.00064657,120]
[358494123,1745209861735,-500.0,0.00064657,120]
[358494124,1745209861744,-1383.2,0.00064657,120]
[358494125,1745209861754,-536.2460923,0.00064657,120]
[358494126,1745209861764,-500.0,0.00064657,120]
[358494127,1745209861774,-368.81310116,0.00064657,120]
[358494128,1745209861783,-500.0,0.00064657,120]
[358494129,1745209861793,-1153.59,0.00064657,120]
[358494130,1745209861803,-500.0,0.00064657,120]
[358494131,1745209861812,-631.4696118,0.00064657,120]
[358494132,1745209861824,-590.93630144,0.00064657,120]
[358494133,1745209861833,-550.5031907,0.00064657,120]
[358494134,1745209861844,-535.91366576,0.00064657,120]
[358494135,1745209861854,-539.96747981,0.00064657,120]
[358494136,1745209861863,-1663.3,0.00064657,7]
[358494137,1745209861873,-500.0,0.00064657,120]
[358494138,1745209861882,-1441.0,0.00064657,120]
[358494139,1745209861892,-655.8,0.00064657,120]
[358494140,1745209861902,-1107.39,0.00064657,120]
[358494141,1745209861912,-525.15,0.00064657,120]
[358494142,1745209861922,-2272.0,0.00064658,120]
[358494143,1745209861932,-904.0,0.00064658,120]
[358494144,1745209861941,-500.0,0.00064658,120]
[358494145,1745209861951,-500.0,0.00064658,120]
[358494146,1745209861960,-500.0,0.00064658,120]
[358494147,1745209861975,-500.0,0.00064658,120]
[358494148,1745209861985,-500.0,0.00064658,120]
[358494149,1745209861995,-1561.0,0.00064669,60]
[358494150,1745209862005,-2042.920338,0.0006478,120]
[358494151,1745209862016,-200.0,0.0006478,120]
[358494152,1745209862026,-778.48,0.000648,2]
[358494153,1745209862035,-155.7,0.000648,2]
[358494154,1745209862045,-649.13,0.000648,2]
[358494155,1745209862054,-5007.33,0.000648,2]
[358494156,1745209862064,-1001.47,0.000648,2]
[358494157,1745209862074,-200.29,0.000648,2]
[358494158,1745209862086,-227.1,0.000648,60]
[358494159,1745209862095,-691.70985217,0.000648,120]
[358494160,1745209862104,-150.72168307,0.00064898,120]
[358494161,1745209862113,-443.0,0.000649,14]
[358494162,1745209862123,-150.0,0.00064906,30]
[358494163,1745209862132,-150.0,0.00064917,120]
[358494164,1745209862141,-1031.0,0.00065,120]
[358494165,1745209862151,-150.0,0.00065079,30]
[358494166,1745209862160,-150.0,0.00065085,30]
[358494167,1745209862171,-778.48,0.000651,2]
[358494168,1745209862181,-155.7,0.000651,2]
[358494169,1745209862191,-649.13,0.000651,2]
[358494170,1745209862200,-5007.33,0.000651,2]
[358494171,1745209862210,-1001.47,0.000651,2]
[358494172,1745209862219,-200.29,0.000651,2]
[358494173,1745209862232,-195.44874123,0.00065104,120]
[358494174,1745209862241,-150.0,0.00065113,30]
[358494175,1745209862250,-150.0,0.00065127,30]
[358494176,1745209862260,-150.0,0.00065184,30]
[358494177,1745209862269,-150.0,0.00065185,30]
[358494178,1745209862278,-150.0,0.00065198,30]
[358494179,1745209862288,-155.744419,0.000652,120]
[358494180,1745209862297,-500.0,0.00065205,120]
[358494181,1745209862307,-500.0,0.00065205,120]
[358494182,1745209862316,-500.0,0.00065205,120]
[358494183,1745209862326,-500.0,0.00065205,120]
[358494184,1745209862336,-1040.07,0.00065205,120]
[358494185,1745209862346,-683.2,0.00065205,120]
[358494186,1745209862355,-500.0,0.00065205,120]
[358494187,1745209862364,-500.0,0.00065205,120]
[358494188,1745209862374,-500.0,0.00065205,2]
[358494189,1745209862383,-311.73434006,0.00065205,120]
[358494190,1745209862394,-500.0,0.00065205,2]
[358494191,1745209862403,-500.0,0.00065205,120]
[358494192,1745209862413,-500.0,0.00065205,120]
[358494193,1745209862422,-500.0,0.00065205,120]
[358494194,1745209862432,-526.83165128,0.00065205,30]
[358494195,1745209862441,-684.87,0.00065205,120]
[358494196,1745209862451,-500.0,0.00065205,120]
[358494197,1745209862460,-1151.8,0.00065205,120]
[358494198,1745209862474,-500.0,0.00065205,120]
[358494199,1745209862484,-523.01750237,0.00065205,120]
[358494200,1745209862494,-2160.04,0.00065205,120]
[358494201,1745209862503,-999.0,0.00065205,120]
[358494202,1745209862512,-962.23,0.00065205,120]
[358494203,1745209862522,-773.14,0.00065205,120]
[358494204,1745209862531,-906.87,0.00065205,120]
[358494205,1745209862541,-578.63,0.00065205,120]
[358494206,1745209862551,-500.0,0.00065205,120]
[358494207,1745209862561,-174.26564995,0.00065205,120]
[358494208,1745209862570,-500.0,0.00065205,120]
[358494209,1745209862580,-500.0,0.00065205,120]
[358494210,1745209862589,-278.30332498,0.00065205,120]
[358494211,1745209862600,-289.75407387,0.00065205,120]
[358494212,1745209862610,-646.60842879,0.00065205,120]
[358494213,1745209862619,-781.23,0.00065205,120]
[358494214,1745209862628,-500.0,0.00065205,120]
[358494215,1745209862637,-500.0,0.00065205,120]
[358494216,1745209862647,-589.81213946,0.00065205,120]
[358494217,1745209862658,-329.90160073,0.00065205,120]
[358494218,1745209862669,-500.0,0.00065205,120]
[358494219,1745209862679,-500.0,0.00065205,120]
[358494220,1745209862688,-500.0,0.00065205,120]
[358494221,1745209862698,-500.0,0.00065205,120]
[358494222,1745209862708,-500.0,0.00065205,120]
[358494223,1745209862717,-500.0,0.00065205,120]
[358494224,1745209862729,-532.03148509,0.00065205,120]
[358494225,1745209862739,-264.89218517,0.00065205,120]
[358494226,1745209862748,-500.0,0.00065205,120]
[358494227,1745209862757,-567.32689619,0.00065205,120]
[358494228,1745209862767,-500.0,0.00065205,120]
[358494229,1745209862777,-508.35,0.00065205,120]
[358494230,1745209862786,-500.0,0.00065205,120]
[358494231,1745209862796,-564.1951004,0.00065205,120]
[358494232,1745209862805,-544.47823911,0.00065205,120]
[358494233,1745209862814,-547.60796594,0.00065205,120]
[358494234,1745209862824,-500.0,0.00065205,120]
[358494235,1745209862834,-500.0,0.00065205,120]
[358494236,1745209862843,-500.0,0.00065205,120]
[358494237,1745209862852,-803.87,0.00065205,120]
[358494238,1745209862863,-500.0,0.00065205,120]
[358494239,1745209862872,-500.0,0.00065205,120]
[358494240,1745209862882,-741.4,0.00065205,120]
[358494241,1745209862891,-500.0,0.00065205,120]
[358494242,1745209862899,-575.97183244,0.00065205,120]
[358494243,1745209862908,-500.0,0.00065205,120]
[358494244,1745209862918,-511.04571597,0.00065205,120]
[358494245,1745209862927,-500.0,0.00065205,120]
[358494246,1745209862937,-500.0,0.00065205,12]
[358494247,1745209862946,-500.0,0.00065205,120]
[358494248,1745209862955,-294.60014665,0.00065205,118]
[358494249,1745209862965,-815.95,0.00065205,120]
[358494250,1745209862977,-661.79,0.00065205,120]
[358494251,1745209862986,-192.61273504,0.00065205,120]
[358494252,1745209862996,-500.0,0.00065205,120]
[358494253,1745209863008,-344.65088057,0.00065205,120]
[358494254,1745209863017,-63.01271148,0.00065205,120]
[358494255,1745209863032,-643.34728852,0.00065205,120]
[358494256,1745209863042,-500.0,0.00065205,14]
[358494257,1745209863051,-520.12717481,0.00065205,120]
[358494258,1745209863061,-622.43855752,0.00065205,120]
[358494259,1745209863071,-500.0,0.00065205,30]
[358494260,1745209863083,-1690.23,0.00065205,120]
[358494261,1745209863093,-500.0,0.00065205,120]
[358494262,1745209863103,-500.0,0.00065205,120]
[358494263,1745209863112,-500.0,0.00065205,120]
[358494264,1745209863122,-787.95,0.00065205,120]
[358494265,1745209863131,-500.0,0.00065205,120]
[358494266,1745209863141,-500.0,0.00065205,120]
[358494267,1745209863150,-500.0,0.00065205,120]
[358494268,1745209863160,-387.59399054,0.00065205,120]
[358494269,1745209863170,-620.04,0.00065205,120]
[358494270,1745209863180,-1111.6,0.00065205,120]
[358494271,1745209863190,-576.4988847,0.00065205,120]
[358494272,1745209863199,-500.0,0.00065205,120]
[358494273,1745209863208,-500.0,0.00065205,120]
[358494274,1745209863218,-500.0,0.00065205,120]
[358494275,1745209863229,-561.61,0.00065205,120]
[358494276,1745209863239,-549.58721156,0.00065205,120]
[358494277,1745209863249,-172.57290959,0.00065205,120]
[358494278,1745209863259,-555.73,0.00065205,120]
[358494279,1745209863269,-729.9,0.00065205,120]
[358494280,1745209863278,-196.90588995,0.00065205,120]
[358494281,1745209863287,-1084.13,0.00065205,120]
[358494282,1745209863298,-500.0,0.00065205,8]
[358494283,1745209863307,-947.59,0.00065205,120]
[358494284,1745209863316,-557.65,0.00065205,120]
[358494285,1745209863326,-2095.28,0.00065205,120]
[358494286,1745209863336,-676.13,0.00065205,120]
[358494287,1745209863345,-549.65409876,0.00065205,120]
[358494288,1745209863355,-159.69912674,0.00065205,120]
[358494289,1745209863365,-500.0,0.00065205,120]
[358494290,1745209863374,-736.6,0.00065205,120]
[358494291,1745209863384,-500.0,0.00065205,120]
[358494292,1745209863393,-774.21,0.00065205,120]
[358494293,1745209863404,-3295.78,0.00065205,2]
[358494294,1745209863413,-2158.59,0.00065205,120]
[358494295,1745209863422,-500.0,0.00065205,120]
[358494296,1745209863432,-1847.89,0.00065205,120]
[358494297,1745209863441,-500.0,0.00065205,120]
[358494298,1745209863451,-500.0,0.00065205,120]
[358494299,1745209863461,-460.35569323,0.00065205,120]
[358494300,1745209863471,-500.0,0.00065205,120]
[358494301,1745209863481,-500.0,0.00065205,120]
[358494302,1745209863491,-500.0,0.00065205,120]
[358494303,1745209863501,-531.0442369,0.00065205,120]
[358494304,1745209863511,-500.0,0.00065205,120]
[358494305,1745209863520,-1383.2,0.00065205,120]
[358494306,1745209863530,-500.0,0.00065205,120]
[358494307,1745209863539,-500.0,0.00065205,120]
[358494308,1745209863548,-1153.59,0.00065205,120]
[358494309,1745209863558,-500.0,0.00065205,120]
[358494310,1745209863568,-1663.3,0.00065205,7]
[358494311,1745209863578,-500.0,0.00065205,120]
[358494312,1745209863587,-1441.0,0.00065205,120]
[358494313,1745209863597,-655.8,0.00065205,120]
[358494314,1745209863607,-1107.39,0.00065205,120]
[358494315,1745209863617,-525.15,0.00065205,120]
[358494316,1745209863628,-2272.0,0.00065206,120]
[358494317,1745209863638,-904.0,0.00065206,120]
[358494318,1745209863748,-303.85266808,0.00065206,120]
[358494319,1745209863757,-569.46056612,0.00065206,120]
[358494320,1745209863767,-500.0,0.00065206,120]
[358494321,1745209863776,-500.0,0.00065206,120]
[358494322,1745209863786,-500.0,0.00065206,120]
[358494323,1745209863796,-1089.83501878,0.00065232,120]
[358494324,1745209863806,-4085.28701048,0.00065233,15]
[358494325,1745209863816,-150.0,0.00065237,30]
[358494326,1745209863826,-981.83985409,0.00065273,120]
[358494327,1745209863835,-778.48,0.000653,2]
[358494328,1745209863845,-649.13,0.000653,2]
[358494329,1745209863854,-5007.33,0.000653,2]
[358494330,1745209863864,-1001.47,0.000653,2]
[358494331,1745209863873,-240.24761151,0.00065324,30]
[358494332,1745209863882,-1561.0,0.00065336,60]
[358494333,1745209863891,-337.24,0.000654,120]
[358494334,1745209863901,-150.0,0.00065406,30]
[358494335,1745209863911,-152.86,0.00065479,120]
[358494336,1745209863920,-150.0,0.00065494,30]
[358494337,1745209863930,-3361.95253337,0.000655,120]
[358494338,1745209863939,-227.1,0.000655,60]
[358494339,1745209863949,-282.69724388,0.00065555,30]
[358494340,1745209863958,-150.0,0.00065559,30]
[358494341,1745209863969,-500.0,0.00065579,120]
[358494342,1745209863980,-4811.52687206,0.00065638,30]
[358494343,1745209863989,-150.0,0.00065684,30]
[358494344,1745209863999,-1000.0,0.00065703,60]
[358494345,1745209864011,-150.0,0.00065721,30]
[358494346,1745209864020,-837.0,0.00065752,120]
[358494347,1745209864030,-500.0,0.00065753,120]
[358494348,1745209864040,-151.38,0.00065753,3]
[358494349,1745209864050,-155.277725,0.00065753,3]
[358494350,1745209864060,-155.143314,0.00065753,3]
[358494351,1745209864070,-170.3025,0.00065753,3]
[358494352,1745209864080,-154.484398,0.00065753,3]
[358494353,1745209864092,-500.0,0.00065753,120]
[358494354,1745209864101,-500.0,0.00065753,120]
[358494355,1745209864111,-500.0,0.00065753,120]
[358494356,1745209864120,-151.0,0.00065753,120]
[358494357,1745209864130,-1040.07,0.00065753,120]
[358494358,1745209864140,-683.2,0.00065753,120]
[358494359,1745209864149,-500.0,0.00065753,120]
[358494360,1745209864159,-500.0,0.00065753,2]
[358494361,1745209864169,-500.0,0.00065753,2]
[358494362,1745209864180,-229.41499577,0.00065753,120]
[358494363,1745209864190,-151.0,0.00065753,120]
[358494364,1745209864200,-573.04658232,0.00065753,120]
[358494365,1745209864209,-500.0,0.00065753,120]
[358494366,1745209864219,-684.87,0.00065753,120]
[358494367,1745209864230,-570.64823336,0.00065753,120]
[358494368,1745209864239,-1151.8,0.00065753,120]
[358494369,1745209864249,-500.0,0.00065753,120]
[358494370,1745209864258,-2160.04,0.00065753,120]
[358494371,1745209864269,-999.0,0.00065753,120]
[358494372,1745209864279,-164.109684,0.00065753,3]
[358494373,1745209864289,-962.23,0.00065753,120]
[358494374,1745209864299,-773.14,0.00065753,120]
[358494375,1745209864309,-906.87,0.00065753,120]
[358494376,1745209864320,-578.63,0.00065753,120]
[358494377,1745209864330,-500.0,0.00065753,120]
[358494378,1745209864340,-543.74077367,0.00065753,120]
[358494379,1745209864350,-195.4732918,0.00065753,120]
[358494380,1745209864360,-151.0,0.00065753,120]
[358494381,1745209864370,-781.23,0.00065753,120]
[358494382,1745209864380,-500.0,0.00065753,120]
[358494383,1745209864390,-240.30428967,0.00065753,120]
[358494384,1745209864399,-155.744419,0.00065753,3]
[358494385,1745209864410,-509.72906875,0.00065753,120]
[358494386,1745209864420,-500.0,0.00065753,120]
[358494387,1745209864430,-500.0,0.00065753,120]
[358494388,1745209864440,-170.33126059,0.00065753,120]
[358494389,1745209864450,-500.0,0.00065753,120]
[358494390,1745209864459,-500.0,0.00065753,120]
[358494391,1745209864468,-500.0,0.00065753,120]
[358494392,1745209864480,-500.0,0.00065753,120]
[358494393,1745209864490,-508.35,0.00065753,120]
[358494394,1745209864500,-325.14486026,0.00065753,120]
[358494395,1745209864509,-500.0,0.00065753,120]
[358494396,1745209864519,-500.0,0.00065753,120]
[358494397,1745209864528,-500.0,0.00065753,120]
[358494398,1745209864538,-803.87,0.00065753,120]
[358494399,1745209864548,-500.0,0.00065753,120]
[358494400,1745209864557,-500.0,0.00065753,120]
[358494401,1745209864566,-741.4,0.00065753,120]
[358494402,1745209864576,-500.0,0.00065753,120]
[358494403,1745209864585,-346.00250637,0.00065753,120]
[358494404,1745209864594,-245.937814,0.00065753,120]
[358494405,1745209864603,-500.0,0.00065753,120]
[358494406,1745209864613,-500.0,0.00065753,12]
[358494407,1745209864622,-500.0,0.00065753,120]
[358494408,1745209864631,-815.95,0.00065753,120]
[358494409,1745209864640,-661.79,0.00065753,120]
[358494410,1745209864649,-500.0,0.00065753,120]
[358494411,1745209864658,-706.36,0.00065753,120]
[358494412,1745209864667,-500.0,0.00065753,14]
[358494413,1745209864676,-500.0,0.00065753,30]
[358494414,1745209864685,-1690.23,0.00065753,120]
[358494415,1745209864695,-500.0,0.00065753,120]
[358494416,1745209864704,-500.0,0.00065753,120]
[358494417,1745209864713,-500.0,0.00065753,120]
[358494418,1745209864722,-787.95,0.00065753,120]
[358494419,1745209864732,-500.0,0.00065753,120]
[358494420,1745209864741,-500.0,0.00065753,120]
[358494421,1745209864751,-500.0,0.00065753,120]
[358494422,1745209864760,-1111.6,0.00065753,120]
[358494423,1745209864770,-350.62635377,0.00065753,120]
[358494424,1745209864779,-500.0,0.00065753,120]
[358494425,1745209864788,-500.0,0.00065753,120]
[358494426,1745209864798,-561.61,0.00065753,120]
[358494427,1745209864808,-555.73,0.00065753,120]
[358494428,1745209864818,-729.9,0.00065753,120]
[358494429,1745209864827,-1084.13,0.00065753,120]
[358494430,1745209864837,-500.0,0.00065753,8]
[358494431,1745209864846,-947.59,0.00065753,120]
[358494432,1745209864856,-557.65,0.00065753,120]
[358494433,1745209864865,-2095.28,0.00065753,120]
[358494434,1745209864875,-676.13,0.00065753,120]
[358494435,1745209864884,-500.0,0.00065753,120]
[358494436,1745209864893,-736.6,0.00065753,120]
[358494437,1745209864903,-389.39344541,0.00065753,120]
[358494438,1745209864912,-774.21,0.00065753,120]
[358494439,1745209864921,-3295.78,0.00065753,2]
[358494440,1745209864931,-2158.59,0.00065753,120]
[358494441,1745209864940,-524.19091298,0.00065753,120]
[358494442,1745209864949,-1847.89,0.00065753,120]
[358494443,1745209864959,-500.0,0.00065753,120]
[358494444,1745209864967,-426.36740621,0.00065753,120]
[358494445,1745209864979,-500.0,0.00065753,120]
[358494446,1745209864988,-382.067862,0.00065753,120]
[358494447,1745209864998,-500.0,0.00065753,120]
[358494448,1745209865009,-500.0,0.00065753,120]
[358494449,1745209865019,-1383.2,0.00065753,120]
[358494450,1745209865028,-155.47456227,0.00065753,120]
[358494451,1745209865038,-500.0,0.00065753,120]
[358494452,1745209865047,-1153.59,0.00065753,120]
[358494453,1745209865056,-500.0,0.00065753,120]
[358494454,1745209865065,-1663.3,0.00065753,7]
[358494455,1745209865074,-500.0,0.00065753,120]
[358494456,1745209865083,-1441.0,0.00065753,120]
[358494457,1745209865093,-655.8,0.00065753,120]
[358494458,1745209865102,-1107.39,0.00065753,120]
[358494459,1745209865112,-387.73027184,0.00065753,120]
[358494460,1745209865121,-2272.0,0.00065753,120]
[358494461,1745209865131,-904.0,0.00065753,120]
[358494462,1745209865140,-500.0,0.00065753,120]
[358494463,1745209865150,-500.0,0.00065753,120]
[358494464,1745209865160,-500.0,0.00065753,120]
[358494465,1745209865170,-150.0,0.00065757,60]
[358494466,1745209865180,-875.60881307,0.00065771,120]
[358494467,1745209865189,-150.0,0.00065812,60]
[358494468,1745209865199,-649.0,0.000659,30]
[358494469,1745209865208,-470.0,0.000659,30]
[358494470,1745209865217,-150.0,0.00065905,60]
[358494471,1745209865227,-258.0,0.00066,120]
[358494472,1745209865237,-155.744419,0.00066,120]
[358494473,1745209865247,-1561.0,0.00066002,60]
[358494474,1745209865257,-221.85598252,0.00066017,60]
[358494475,1745209865267,-792.09711407,0.00066017,120]
[358494476,1745209865276,-150.0,0.00066109,60]
[358494477,1745209865286,-160.36743009,0.00066226,60]
[358494478,1745209865296,-1000.0,0.000663,2]
[358494479,1745209865305,-331.876103,0.000663,63]
[358494480,1745209865314,-150.0,0.000663,120]
[358494481,1745209865323,-500.0,0.00066301,120]
[358494482,1745209865333,-500.0,0.00066301,120]
[358494483,1745209865343,-500.0,0.00066301,120]
[358494484,1745209865352,-500.0,0.00066301,120]
[358494485,1745209865362,-1040.07,0.00066301,120]
[358494486,1745209865371,-683.2,0.00066301,120]
[358494487,1745209865381,-500.0,0.00066301,120]
[358494488,1745209865391,-500.0,0.00066301,2]
[358494489,1745209865400,-492.29036286,0.00066301,2]
[358494490,1745209865410,-535.7,0.00066301,120]
[358494491,1745209865419,-684.87,0.00066301,120]
[358494492,1745209865429,-1151.8,0.00066301,120]
[358494493,1745209865439,-500.0,0.00066301,120]
[358494494,1745209865448,-2160.04,0.00066301,120]
[358494495,1745209865457,-999.0,0.00066301,120]
[358494496,1745209865468,-962.23,0.00066301,120]
[358494497,1745209865478,-773.14,0.00066301,120]
[358494498,1745209865487,-860.42979334,0.00066301,120]
[358494499,1745209865511,-46.44020666,0.00066301,120]
[358494500,1745209865521,-578.63,0.00066301,120]
[358494501,1745209865532,-414.9342157,0.00066301,120]
[358494502,1745209865542,-781.23,0.00066301,120]
[358494503,1745209865552,-500.0,0.00066301,120]
[358494504,1745209865562,-500.0,0.00066301,120]
[358494505,1745209865572,-380.07458064,0.00066301,120]
[358494506,1745209865584,-119.92541936,0.00066301,120]
[358494507,1745209865594,-500.0,0.00066301,120]
[358494508,1745209865604,-532.46612998,0.00066301,120]
[358494509,1745209865614,-500.0,0.00066301,120]
[358494510,1745209865624,-544.10940841,0.00066301,120]
[358494511,1745209865634,-508.35,0.00066301,120]
[358494512,1745209865644,-491.50663377,0.00066301,120]
[358494513,1745209865655,-8.49336623,0.00066301,120]
[358494514,1745209865664,-500.0,0.00066301,120]
[358494515,1745209865674,-500.0,0.00066301,120]
[358494516,1745209865775,-693.21707141,0.00066301,120]
[358494517,1745209865874,-917.89264726,0.00059619,15]